fUST/lending_fUST_20260601
["ID","MTS","AMOUNT","RATE_DAILY","PERIOD"]
[423575086,1780246253000,-500.0,0.00015068,2]
[423575039,1780246253000,-500.0,0.00014794,2]
[423575096,1780246253000,-500.0,0.00015068,2]
[423575128,1780246253000,-1714.686641,0.00016436,2]
[423575131,1780246253000,-151.0,0.00016436,2]
[423575127,1780246253000,-1714.686641,0.00016436,2]
[423575137,1780246253000,-415.610205,0.00016436,2]
[423575129,1780246253000,-1714.686641,0.00016436,2]
[423575138,1780246253000,-415.610205,0.00016436,2]
[423575130,1780246253000,-1714.686641,0.00016436,2]
[423575133,1780246253000,-151.0,0.00016436,2]
[423575134,1780246253000,-248.881721,0.00016436,2]
[423575135,1780246253000,-415.610205,0.00016436,2]
[423575132,1780246253000,-151.0,0.00016436,2]
[423575136,1780246253000,-415.610205,0.00016436,2]
[423575140,1780246253000,-489.8765,0.00016436,2]
[423575146,1780246253000,-200.0,0.00016438,2]
[423575139,1780246253000,-489.8765,0.00016436,2]
[423575147,1780246253000,-520.55,0.00016438,2]
[423575154,1780246253000,-520.55,0.00016986,2]
[423575148,1780246253000,-151.0,0.00016438,2]
[423575149,1780246253000,-151.0,0.00016438,2]
[423575142,1780246253000,-489.8765,0.00016436,2]
[423575141,1780246253000,-489.8765,0.00016436,2]
[423575145,1780246253000,-152.973126,0.00016436,2]
[423575150,1780246253000,-153.787976,0.00016438,2]
[423575144,1780246253000,-151.0,0.00016436,2]
[423575151,1780246253000,-421.33819896,0.00016544,2]
[423575143,1780246253000,-151.0,0.00016436,2]
[423575152,1780246253000,-520.55,0.00016712,2]
[423575153,1780246253000,-172.64,0.00016952,2]
[423575092,1780246253000,-620.25,0.00015068,2]
[423575126,1780246253000,-151.0,0.00016436,2]
[423575123,1780246253000,-1694.26,0.00016,2]
[423575155,1780246253000,-359.562719,0.00017013,2]
[423575121,1780246253000,-895.497521,0.00015888,2]
[423575094,1780246253000,-500.0,0.00015068,2]
[423575095,1780246253000,-500.0,0.00015068,2]
[423575097,1780246253000,-530.602246,0.00015068,2]
[423575093,1780246253000,-520.55,0.00015068,2]
[423575100,1780246253000,-403.72659905,0.00015203,2]
[423575098,1780246253000,-421.33819896,0.00015071,2]
[423575102,1780246253000,-500.0,0.00015342,2]
[423575103,1780246253000,-309.66399247,0.00015342,2]
[423575120,1780246253000,-895.497521,0.00015888,2]
[423575099,1780246253000,-356.11527865,0.00015203,2]
[423575105,1780246253000,-520.55,0.00015616,2]
[423575104,1780246253000,-520.55,0.00015342,2]
[423575108,1780246253000,-311.190034,0.00015888,2]
[423575107,1780246253000,-359.562719,0.0001583,2]
[423575101,1780246253000,-359.562719,0.00015238,2]
[423575109,1780246253000,-311.190034,0.00015888,2]
[423575124,1780246253000,-520.55,0.00016164,2]
[423575106,1780246253000,-952.04168579,0.00015788,2]
[423575122,1780246253000,-520.55,0.0001589,2]
[423575118,1780246253000,-895.497521,0.00015888,2]
[423575119,1780246253000,-895.497521,0.00015888,2]
[423575116,1780246253000,-151.0,0.00015888,2]
[423575117,1780246253000,-208.808944,0.00015888,2]
[423575125,1780246253000,-359.562719,0.00016422,2]
[423575115,1780246253000,-151.0,0.00015888,2]
[423575112,1780246253000,-151.0,0.00015888,2]
[423575113,1780246253000,-151.0,0.00015888,2]
[423575110,1780246253000,-311.190034,0.00015888,2]
[423575111,1780246253000,-311.190034,0.00015888,2]
[423575114,1780246253000,-151.0,0.00015888,2]
[423575189,1780246254000,-3149.82300625,0.000174,2]
[423575197,1780246254000,-1714.686641,0.000174,2]
[423575190,1780246254000,-11181.90547765,0.000174,2]
[423575192,1780246254000,-223.093656,0.000174,2]
[423575193,1780246254000,-223.093656,0.000174,2]
[423575198,1780246254000,-1714.686641,0.000174,2]
[423575194,1780246254000,-223.093656,0.000174,2]
[423575187,1780246254000,-272.855485,0.000174,2]
[423575196,1780246254000,-151.0,0.000174,2]
[423575195,1780246254000,-8000.1823346,0.000174,2]
[423575199,1780246254000,-1714.686641,0.000174,2]
[423575191,1780246254000,-223.093656,0.000174,2]
[423575203,1780246254000,-151.0,0.000174,2]
[423575212,1780246254000,-191.087386,0.000174,2]
[423575202,1780246254000,-151.0,0.000174,2]
[423575201,1780246254000,-151.0,0.000174,2]
[423575206,1780246254000,-415.610205,0.000174,2]
[423575209,1780246254000,-191.087386,0.000174,2]
[423575207,1780246254000,-415.610205,0.000174,2]
[423575208,1780246254000,-415.610205,0.000174,2]
[423575204,1780246254000,-415.610205,0.000174,2]
[423575210,1780246254000,-465.389612,0.000174,2]
[423575211,1780246254000,-500.0,0.000174,2]
[423575205,1780246254000,-152.6558634,0.000174,2]
[423575213,1780246254000,-465.389612,0.000174,2]
[423575215,1780246254000,-191.087386,0.000174,2]
[423575188,1780246254000,-272.855485,0.000174,2]
[423575200,1780246254000,-1714.686641,0.000174,2]
[423575186,1780246254000,-272.855485,0.000174,2]
[423575167,1780246254000,-151.0,0.000174,2]
[423575183,1780246254000,-500.0,0.000174,2]
[423575214,1780246254000,-500.0,0.000174,2]
[423575164,1780246254000,-151.0,0.000174,2]
[423575163,1780246254000,-151.0,0.000174,2]
[423575165,1780246254000,-151.0,0.000174,2]
[423575156,1780246254000,-246.86,0.000171,2]
[423575157,1780246254000,-520.55,0.0001726,2]
[423575158,1780246254000,-1931.46,0.000173,2]
[423575159,1780246254000,-704.34933408,0.00017391,2]
[423575162,1780246254000,-157.9965883,0.000174,2]
[423575161,1780246254000,-12709.6687535,0.000174,2]
[423575160,1780246254000,-157.9965883,0.000174,2]
[423575166,1780246254000,-151.0,0.000174,2]
[423575168,1780246254000,-151.0,0.000174,2]
[423575184,1780246254000,-207.184503,0.000174,2]
[423575170,1780246254000,-151.0,0.000174,2]
[423575175,1780246254000,-181.875987,0.000174,2]
[423575172,1780246254000,-335.114378,0.000174,2]
[423575171,1780246254000,-335.114378,0.000174,2]
[423575174,1780246254000,-335.114378,0.000174,2]
[423575173,1780246254000,-181.875987,0.000174,2]
[423575176,1780246254000,-335.114378,0.000174,2]
[423575177,1780246254000,-181.875987,0.000174,2]
[423575179,1780246254000,-500.0,0.000174,2]
[423575185,1780246254000,-272.855485,0.000174,2]
[423575178,1780246254000,-181.875987,0.000174,2]
[423575181,1780246254000,-500.0,0.000174,2]
[423575180,1780246254000,-500.0,0.000174,2]
[423575182,1780246254000,-151.0,0.000174,2]
[423575169,1780246254000,-151.0,0.000174,2]
[423575217,1780246254000,-465.389612,0.000174,2]
[423575219,1780246254000,-465.389612,0.000174,2]
[423575216,1780246254000,-500.0,0.000174,2]
[423575251,1780246254000,-465.389612,0.000186,2]
[423575253,1780246254000,-191.087386,0.000186,2]
[423575259,1780246254000,-491.838726,0.000186,2]
[423575255,1780246254000,-465.389612,0.000186,2]
[423575256,1780246254000,-191.087389,0.000186,2]
[423575254,1780246254000,-500.0,0.000186,2]
[423575260,1780246254000,-491.838726,0.000186,2]
[423575257,1780246254000,-465.389616,0.000186,2]
[423575258,1780246254000,-500.0,0.000186,2]
[423575252,1780246254000,-500.0,0.000186,2]
[423575262,1780246254000,-491.838726,0.000186,2]
[423575261,1780246254000,-491.838726,0.000186,2]
[423575275,1780246254000,-643.9439,0.00019178,2]
[423575274,1780246254000,-200.0,0.000191,2]
[423575276,1780246254000,-643.9439,0.00019178,2]
[423575268,1780246254000,-151.0,0.00019,2]
[423575271,1780246254000,-151.0,0.00019,2]
[423575263,1780246254000,-520.55,0.0001863,2]
[423575265,1780246254000,-151.0,0.00019,2]
[423575272,1780246254000,-151.0,0.00019,2]
[423575266,1780246254000,-151.0,0.00019,2]
[423575267,1780246254000,-151.0,0.00019,2]
[423575270,1780246254000,-151.0,0.00019,2]
[423575269,1780246254000,-151.0,0.00019,2]
[423575273,1780246254000,-292.0,0.00019,2]
[423575277,1780246254000,-520.55,0.00019178,2]
[423575278,1780246254000,-151.0,0.00019178,2]
[423575247,1780246254000,-191.087386,0.000186,2]
[423575239,1780246254000,-520.55,0.00018082,2]
[423575264,1780246254000,-520.55,0.00018904,2]
[423575242,1780246254000,-530.602246,0.00018493,2]
[423575241,1780246254000,-520.55,0.00018356,2]
[423575220,1780246254000,-500.0,0.000174,2]
[423575218,1780246254000,-191.087386,0.000174,2]
[423575221,1780246254000,-491.838726,0.000174,2]
[423575222,1780246254000,-491.838726,0.000174,2]
[423575224,1780246254000,-491.838726,0.000174,2]
[423575225,1780246254000,-489.8765,0.000174,2]
[423575226,1780246254000,-489.8765,0.000174,2]
[423575228,1780246254000,-489.8765,0.000174,2]
[423575235,1780246254000,-520.55,0.00017534,2]
[423575236,1780246254000,-520.55,0.00017808,2]
[423575227,1780246254000,-489.8765,0.000174,2]
[423575229,1780246254000,-151.0,0.000174,2]
[423575232,1780246254000,-895.497521,0.000174,2]
[423575223,1780246254000,-491.838726,0.000174,2]
[423575245,1780246254000,-2722.12,0.000186,2]
[423575244,1780246254000,-2722.12,0.000186,2]
[423575246,1780246254000,-579.68,0.000186,2]
[423575243,1780246254000,-2722.12,0.000186,2]
[423575230,1780246254000,-151.0,0.000174,2]
[423575250,1780246254000,-191.087386,0.000186,2]
[423575249,1780246254000,-500.0,0.000186,2]
[423575240,1780246254000,-200.0,0.000181,2]
[423575248,1780246254000,-465.389612,0.000186,2]
[423575237,1780246254000,-161.21930169,0.00017982,2]
[423575234,1780246254000,-895.497529,0.000174,2]
[423575231,1780246254000,-895.497521,0.000174,2]
[423575233,1780246254000,-895.497521,0.000174,2]
[423575238,1780246254000,-421.33819896,0.00018016,2]
[423575323,1780246255000,-151.0,0.0002,2]
[423575317,1780246255000,-205.12206386,0.0002,2]
[423575320,1780246255000,-208.0,0.0002,2]
[423575325,1780246255000,-151.0,0.0002,2]
[423575319,1780246255000,-161.78731335,0.0002,2]
[423575305,1780246255000,-151.0,0.000198,2]
[423575315,1780246255000,-375.98379174,0.0002,2]
[423575316,1780246255000,-454.60998225,0.0002,2]
[423575314,1780246255000,-9895.13515967,0.0002,2]
[423575311,1780246255000,-223.093656,0.000198,2]
[423575310,1780246255000,-223.093656,0.000198,2]
[423575321,1780246255000,-151.0,0.0002,2]
[423575318,1780246255000,-1000.0,0.0002,2]
[423575324,1780246255000,-151.0,0.0002,2]
[423575336,1780246255000,-181.875987,0.0002,2]
[423575332,1780246255000,-335.114378,0.0002,2]
[423575337,1780246255000,-335.114378,0.0002,2]
[423575333,1780246255000,-335.114378,0.0002,2]
[423575330,1780246255000,-151.0,0.0002,2]
[423575331,1780246255000,-151.0,0.0002,2]
[423575339,1780246255000,-181.875987,0.0002,2]
[423575328,1780246255000,-151.0,0.0002,2]
[423575329,1780246255000,-151.0,0.0002,2]
[423575335,1780246255000,-335.114378,0.0002,2]
[423575327,1780246255000,-151.0,0.0002,2]
[423575326,1780246255000,-151.0,0.0002,2]
[423575338,1780246255000,-181.875987,0.0002,2]
[423575334,1780246255000,-181.875987,0.0002,2]
[423575322,1780246255000,-151.0,0.0002,2]
[423575313,1780246255000,-223.093656,0.000198,2]
[423575280,1780246255000,-151.0,0.00019178,2]
[423575307,1780246255000,-151.0,0.000198,2]
[423575340,1780246255000,-500.0,0.0002,2]
[423575279,1780246255000,-151.0,0.00019178,2]
[423575283,1780246255000,-151.0,0.00019178,2]
[423575281,1780246255000,-151.0,0.00019178,2]
[423575284,1780246255000,-151.0,0.00019178,2]
[423575282,1780246255000,-151.0,0.00019178,2]
[423575287,1780246255000,-421.33819896,0.00019489,2]
[423575290,1780246255000,-429.2959,0.00019589,3]
[423575285,1780246255000,-288.780371,0.00019178,2]
[423575289,1780246255000,-429.2959,0.00019589,3]
[423575286,1780246255000,-520.55,0.00019452,2]
[423575288,1780246255000,-429.2959,0.00019589,3]
[423575292,1780246255000,-429.2959,0.00019589,3]
[423575291,1780246255000,-429.2959,0.00019589,3]
[423575303,1780246255000,-311.190034,0.000198,2]
[423575302,1780246255000,-311.190034,0.000198,2]
[423575293,1780246255000,-429.2959,0.00019589,3]
[423575294,1780246255000,-150.0,0.00019683,2]
[423575295,1780246255000,-520.55,0.00019726,2]
[423575297,1780246255000,-2247.723,0.000198,2]
[423575298,1780246255000,-2247.72,0.000198,2]
[423575300,1780246255000,-478.66,0.000198,2]
[423575299,1780246255000,-409.51,0.000198,2]
[423575296,1780246255000,-2247.723,0.000198,2]
[423575301,1780246255000,-311.190034,0.000198,2]
[423575304,1780246255000,-311.190034,0.000198,2]
[423575306,1780246255000,-151.0,0.000198,2]
[423575308,1780246255000,-151.0,0.000198,2]
[423575309,1780246255000,-151.0,0.000198,2]
[423575312,1780246255000,-223.093656,0.000198,2]
[423575343,1780246255000,-151.0,0.0002,2]
[423575387,1780246255000,-335.114378,0.00020683,2]
[423575344,1780246255000,-500.0,0.0002,2]
[423575380,1780246255000,-151.0,0.00020683,2]
[423575373,1780246255000,-151.0,0.00020683,2]
[423575374,1780246255000,-151.0,0.00020683,2]
[423575377,1780246255000,-151.0,0.00020683,2]
[423575382,1780246255000,-151.0,0.00020683,2]
[423575392,1780246255000,-181.875987,0.00020683,2]
[423575385,1780246255000,-167.40875,0.00020683,2]
[423575393,1780246255000,-181.875987,0.00020683,2]
[423575383,1780246255000,-151.0,0.00020683,2]
[423575389,1780246255000,-335.114378,0.00020683,2]
[423575381,1780246255000,-261.909232,0.00020683,2]
[423575386,1780246255000,-335.114378,0.00020683,2]
[423575384,1780246255000,-151.0,0.00020683,2]
[423575391,1780246255000,-335.114378,0.00020683,2]
[423575406,1780246255000,-223.093655,0.00020683,2]
[423575390,1780246255000,-181.875987,0.00020683,2]
[423575394,1780246255000,-500.0,0.00020683,2]
[423575396,1780246255000,-500.0,0.00020683,2]
[423575397,1780246255000,-151.0,0.00020683,2]
[423575395,1780246255000,-500.0,0.00020683,2]
[423575399,1780246255000,-272.855485,0.00020683,2]
[423575398,1780246255000,-500.0,0.00020683,2]
[423575403,1780246255000,-223.093656,0.00020683,2]
[423575402,1780246255000,-272.855485,0.00020683,2]
[423575404,1780246255000,-223.093656,0.00020683,2]
[423575400,1780246255000,-272.855485,0.00020683,2]
[423575405,1780246255000,-223.093656,0.00020683,2]
[423575401,1780246255000,-272.855485,0.00020683,2]
[423575342,1780246255000,-500.0,0.0002,2]
[423575371,1780246255000,-311.190034,0.00020683,2]
[423575376,1780246255000,-151.0,0.00020683,2]
[423575388,1780246255000,-181.875987,0.00020683,2]
[423575372,1780246255000,-311.190034,0.00020683,2]
[423575341,1780246255000,-500.0,0.0002,2]
[423575370,1780246255000,-311.190034,0.00020683,2]
[423575351,1780246255000,-1714.686641,0.0002,2]
[423575352,1780246255000,-1714.686641,0.0002,2]
[423575353,1780246255000,-1714.686643,0.0002,2]
[423575345,1780246255000,-272.855485,0.0002,2]
[423575347,1780246255000,-272.855485,0.0002,2]
[423575346,1780246255000,-272.855485,0.0002,2]
[423575349,1780246255000,-285.559041,0.0002,2]
[423575348,1780246255000,-272.855485,0.0002,2]
[423575355,1780246255000,-151.0,0.0002,2]
[423575365,1780246255000,-208.0,0.00020341,30]
[423575366,1780246255000,-993.263142,0.00020548,2]
[423575357,1780246255000,-415.610205,0.0002,2]
[423575356,1780246255000,-151.0,0.0002,2]
[423575350,1780246255000,-1714.686641,0.0002,2]
[423575358,1780246255000,-415.610205,0.0002,2]
[423575375,1780246255000,-151.0,0.00020683,2]
[423575354,1780246255000,-151.0,0.0002,2]
[423575379,1780246255000,-151.0,0.00020683,2]
[423575369,1780246255000,-311.190034,0.00020683,2]
[423575367,1780246255000,-1085.58,0.000206,2]
[423575368,1780246255000,-208.0,0.00020683,120]
[423575362,1780246255000,-520.71,0.0002,2]
[423575378,1780246255000,-151.0,0.00020683,2]
[423575363,1780246255000,-200.0,0.000201,2]
[423575364,1780246255000,-150.0,0.00020183,2]
[423575360,1780246255000,-415.610209,0.0002,2]
[423575359,1780246255000,-415.610205,0.0002,2]
[423575361,1780246255000,-151.0,0.0002,2]
[423575423,1780246256000,-390.98362507,0.00020683,2]
[423575437,1780246256000,-151.0,0.00020683,2]
[423575424,1780246256000,-204.19181711,0.00020683,2]
[423575425,1780246256000,-3193.3285233,0.00020683,2]
[423575426,1780246256000,-152.46200359,0.00020683,2]
[423575427,1780246256000,-262.26059676,0.00020683,2]
[423575429,1780246256000,-328.32979924,0.00020683,2]
[423575430,1780246256000,-330.16385487,0.00020683,2]
[423575431,1780246256000,-1058.30035679,0.00020683,2]
[423575432,1780246256000,-160.0,0.00020683,2]
[423575434,1780246256000,-151.0,0.00020683,2]
[423575422,1780246256000,-229.73794303,0.00020683,2]
[423575428,1780246256000,-678.81929261,0.00020683,2]
[423575421,1780246256000,-2690.26205697,0.00020683,2]
[423575407,1780246256000,-184.87,0.00020683,2]
[423575414,1780246256000,-514.8324405,0.00020683,2]
[423575413,1780246256000,-159.78977392,0.00020683,2]
[423575416,1780246256000,-474.53361459,0.00020683,2]
[423575415,1780246256000,-589.63703735,0.00020683,2]
[423575412,1780246256000,-749.75981709,0.00020683,2]
[423575410,1780246256000,-158.81509315,0.00020683,2]
[423575411,1780246256000,-712.54253035,0.00020683,2]
[423575409,1780246256000,-1381.20965696,0.00020683,2]
[423575419,1780246256000,-1416.91270532,0.00020683,2]
[423575408,1780246256000,-646.30451825,0.00020683,2]
[423575418,1780246256000,-1212.2231839,0.00020683,2]
[423575417,1780246256000,-191.83639557,0.00020683,2]
[423575442,1780246256000,-151.0,0.00020683,2]
[423575420,1780246256000,-660.50735573,0.00020683,2]
[423575436,1780246256000,-151.0,0.00020683,2]
[423575457,1780246256000,-803.460031,0.00020683,2]
[423575441,1780246256000,-151.0,0.00020683,2]
[423575461,1780246256000,-803.460031,0.00020683,2]
[423575433,1780246256000,-1300.0,0.00020683,2]
[423575463,1780246256000,-803.460031,0.00020683,2]
[423575459,1780246256000,-803.460031,0.00020683,2]
[423575460,1780246256000,-803.460031,0.00020683,2]
[423575466,1780246256000,-803.460031,0.00020683,2]
[423575465,1780246256000,-803.460031,0.00020683,2]
[423575462,1780246256000,-803.460031,0.00020683,2]
[423575467,1780246256000,-141.16336597,0.00020683,2]
[423575458,1780246256000,-803.460031,0.00020683,2]
[423575456,1780246256000,-803.460031,0.00020683,2]
[423575452,1780246256000,-803.460031,0.00020683,2]
[423575449,1780246256000,-803.460031,0.00020683,2]
[423575448,1780246256000,-803.460031,0.00020683,2]
[423575464,1780246256000,-803.460031,0.00020683,2]
[423575451,1780246256000,-803.460031,0.00020683,2]
[423575440,1780246256000,-151.0,0.00020683,2]
[423575435,1780246256000,-151.0,0.00020683,2]
[423575439,1780246256000,-151.0,0.00020683,2]
[423575438,1780246256000,-151.0,0.00020683,2]
[423575453,1780246256000,-803.460031,0.00020683,2]
[423575443,1780246256000,-217.459562,0.00020683,2]
[423575444,1780246256000,-151.0,0.00020683,2]
[423575446,1780246256000,-151.0,0.00020683,2]
[423575454,1780246256000,-803.460031,0.00020683,2]
[423575447,1780246256000,-165.125097,0.00020683,2]
[423575445,1780246256000,-151.0,0.00020683,2]
[423575450,1780246256000,-803.460031,0.00020683,2]
[423575455,1780246256000,-803.460031,0.00020683,2]
[423575469,1780246277000,20000.0,0.00020683,120]
[423575470,1780246286000,3000.0,0.00020683,120]
[423575488,1780246929000,-2556.13693787,0.00012387,2]
[423575515,1780247431000,-867.59463428,0.0001143,2]
[423575513,1780247431000,-560.902,0.0001143,2]
[423575516,1780247431000,-1245.13967907,0.00011545,2]
[423575514,1780247431000,-433.24071047,0.0001143,2]
[423575614,1780247438000,-1113.92744097,0.00011662,2]
[423575613,1780247438000,-3754.86032093,0.00011545,2]
[423576618,1780247446000,-378.08832076,0.00018997,2]
[423576617,1780247446000,-451.2499554,0.00018997,2]
[423576615,1780247446000,-271.589941,0.00018974,2]
[423576612,1780247446000,-271.589941,0.00018208,2]
[423576609,1780247446000,-2869.9833547,0.00016933,2]
[423576608,1780247446000,-1000.0,0.00016485,2]
[423576598,1780247446000,-817.22397063,0.00014969,7]
[423576584,1780247446000,-4678.07431463,0.00011545,2]
[423576592,1780247446000,-817.22397059,0.00013632,7]
[423576594,1780247446000,-817.22397059,0.00014033,7]
[423576590,1780247446000,-817.22397059,0.00013365,7]
[423576586,1780247446000,-172.375954,0.00012323,2]
[423576588,1780247446000,-570.79733688,0.00012666,2]
[423576600,1780247446000,-288.39658361,0.00015204,2]
[423576596,1780247446000,-817.22397059,0.00014434,7]
[423576606,1780247446000,-318.361347,0.00016448,2]
[423576620,1780247446000,-5844.58619676,0.00019,10]
[423576604,1780247446000,-200.0,0.00016438,2]
[423576658,1780247446000,-1933.31640373,0.00021,2]
[423576650,1780247446000,-157.9965883,0.00020683,2]
[423576652,1780247446000,-176.0,0.00020683,120]
[423576654,1780247446000,-1258.926897,0.000207,2]
[423576643,1780247446000,-271.589941,0.00020507,2]
[423576648,1780247446000,-8059.5341765,0.00020683,2]
[423576641,1780247446000,-176.0,0.00020342,30]
[423576645,1780247446000,-526.29,0.00020673,30]
[423576628,1780247446000,-176.0,0.0002,2]
[423576626,1780247446000,-318.361347,0.00019873,2]
[423576637,1780247446000,-3072.7650864,0.00020004,2]
[423576635,1780247446000,-3304.1820347,0.00020004,2]
[423576624,1780247446000,-172.64,0.00019741,2]
[423576622,1780247446000,-271.589941,0.00019741,2]
[423576656,1780247446000,-454.0,0.000208,2]
[423576639,1780247446000,-2183.3875903,0.00020004,2]
[423576602,1780247446000,-160.0,0.00015213,2]
[423577097,1780247484000,348.61,8.201e-05,2]
[423577096,1780247484000,348.61,8.201e-05,2]
[423577098,1780247485000,348.62,8.201e-05,2]
[423577099,1780247486000,348.61,8.201e-05,2]
[423577152,1780248079000,3000.0,0.00020688,120]
[423577155,1780248130000,7106.15747001,7.6e-05,2]
[423577233,1780248599000,165.51,8.201e-05,2]
[423577234,1780248600000,165.5,8.201e-05,2]
[423577281,1780248632000,-1140.75938878,0.00012945,2]
[423577279,1780248632000,-3859.24061122,0.00012816,2]
[423577270,1780248632000,-520.58013479,0.00012816,2]
[423577262,1780248632000,-620.17925399,0.00012816,2]
[423577511,1780248638000,-152.0,0.00014985,7]
[423577502,1780248638000,-157.79160527,0.00014932,2]
[423577515,1780248638000,-500.0,0.00014996,2]
[423577517,1780248638000,-500.0,0.00014996,2]
[423577521,1780248638000,-500.0,0.00014996,2]
[423577519,1780248638000,-500.0,0.00014996,2]
[423577531,1780248638000,-500.0,0.00014996,2]
[423577534,1780248638000,-500.0,0.00014996,2]
[423577525,1780248638000,-500.0,0.00014996,2]
[423577523,1780248638000,-500.0,0.00014996,2]
[423577536,1780248638000,-500.0,0.00014996,2]
[423577508,1780248638000,-152.0,0.00014969,7]
[423577529,1780248638000,-500.0,0.00014996,2]
[423577506,1780248638000,-1766.25619343,0.00014954,2]
[423577485,1780248638000,-164.93566071,0.00013767,2]
[423577510,1780248638000,-152.0,0.00014969,7]
[423577498,1780248638000,-329.87132143,0.00014466,2]
[423577504,1780248638000,-494.80698214,0.00014932,2]
[423577496,1780248638000,-746.08732238,0.00014236,2]
[423577494,1780248638000,-893.384765,0.00013898,2]
[423577492,1780248638000,-1000.0,0.00013894,2]
[423577490,1780248638000,-220.1176455,0.00013883,2]
[423577489,1780248638000,-229.99,0.00013866,2]
[423577487,1780248638000,-258.39953676,0.00013774,2]
[423577477,1780248638000,-3859.24061122,0.00012945,2]
[423577479,1780248638000,-160.0775799,0.00013075,2]
[423577481,1780248638000,-300.0,0.00013743,2]
[423577483,1780248638000,-419.0,0.00013743,2]
[423577533,1780248638000,-504.89348709,0.00014996,2]
[423577513,1780248638000,-210.54854543,0.00014996,2]
[423577527,1780248638000,-500.0,0.00014996,2]
[423577500,1780248638000,-168.092411,0.00014831,2]
[423577540,1780248638000,-500.0,0.00014996,2]
[423577575,1780248638000,-500.0,0.00014997,2]
[423577581,1780248638000,-500.0,0.00014997,2]
[423577579,1780248638000,-500.0,0.00014997,2]
[423577583,1780248638000,-500.0,0.00014997,2]
[423577588,1780248638000,-500.0,0.00014997,2]
[423577584,1780248638000,-500.0,0.00014997,2]
[423577577,1780248638000,-500.0,0.00014997,2]
[423577590,1780248638000,-501.98033126,0.00014997,2]
[423577594,1780248638000,-500.0,0.00014997,2]
[423577592,1780248638000,-500.0,0.00014997,2]
[423577598,1780248638000,-500.20120716,0.00014998,2]
[423577600,1780248638000,-500.0,0.00014998,2]
[423577538,1780248638000,-500.0,0.00014996,2]
[423577602,1780248638000,-500.0,0.00014998,2]
[423577586,1780248638000,-500.0,0.00014997,2]
[423577573,1780248638000,-500.0,0.00014997,2]
[423577596,1780248638000,-500.30658169,0.00014998,2]
[423577571,1780248638000,-500.0,0.00014997,2]
[423577556,1780248638000,-500.0,0.00014997,2]
[423577544,1780248638000,-500.0,0.00014996,2]
[423577546,1780248638000,-500.0,0.00014996,2]
[423577558,1780248638000,-500.0,0.00014997,2]
[423577542,1780248638000,-500.0,0.00014996,2]
[423577548,1780248638000,-500.0,0.00014996,2]
[423577560,1780248638000,-1028.27,0.00014997,2]
[423577550,1780248638000,-534.45073703,0.00014996,2]
[423577562,1780248638000,-500.0,0.00014997,2]
[423577552,1780248638000,-421.62955365,0.00014996,2]
[423577566,1780248638000,-500.0,0.00014997,2]
[423577564,1780248638000,-500.0,0.00014997,2]
[423577568,1780248638000,-500.0,0.00014997,2]
[423577554,1780248638000,-559.57,0.00014997,2]
[423577692,1780248639000,-1766.25619342,0.00015427,2]